[Event "Titled Tuesday Blitz May 4 2021"]
[White "Korchmar, Vasiliy"]
[Black "Lamaze, Simon"]
[WhiteFideId "24131750"]
[BlackFideId "36069264"]
[WhiteElo "2370"]
[BlackElo "1938"]
[Result "0-1"]
[Round "01"]
[TimeControl "180+1"]
[Date "2021.05.04"]
[WhiteClock "0:00:18"]
[BlackClock "0:00:01"]

1. d4 {[%clk 0:03:00]}  Nf6 {[%clk 0:02:57]} 2. Nf3 {[%clk 0:03:00]}  e6 {[%clk 0:02:38]} 3. Bf4 {[%clk 0:03:00]}  d5 {[%clk 0:02:36]} 4. e3 {[%clk 0:03:01]}  Bd6 {[%clk 0:02:23]} 5. Bg3 {[%clk 0:03:00]}  O-O {[%clk 0:02:16]} 6. Nbd2 {[%clk 0:03:00]}  c5 {[%clk 0:02:13]} 7. c3 {[%clk 0:03:01]}  Qc7 {[%clk 0:02:13]} 8. Ne5 {[%clk 0:02:50]}  Nbd7 {[%clk 0:02:11]} 9. f4 {[%clk 0:02:50]}  Ne4 {[%clk 0:02:06]} 10. Nxe4 {[%clk 0:02:47]}  dxe4 {[%clk 0:02:06]} 11. Be2 {[%clk 0:02:29]}  Nb6 {[%clk 0:02:01]} 12. O-O {[%clk 0:02:24]}  f6 {[%clk 0:01:56]} 13. Ng4 {[%clk 0:02:14]}  c4 {[%clk 0:01:44]} 14. Qc2 {[%clk 0:02:03]}  f5 {[%clk 0:01:36]} 15. Ne5 {[%clk 0:02:02]}  Bxe5 {[%clk 0:01:31]} 16. fxe5 {[%clk 0:02:03]}  Nd5 {[%clk 0:01:31]} 17. Qd2 {[%clk 0:01:55]}  b5 {[%clk 0:01:24]} 18. a4 {[%clk 0:01:53]}  Bd7 {[%clk 0:01:14]} 19. axb5 {[%clk 0:01:49]}  Bxb5 {[%clk 0:01:15]} 20. Ra2 {[%clk 0:01:49]}  a6 {[%clk 0:01:12]} 21. Rfa1 {[%clk 0:01:44]}  Qf7 {[%clk 0:01:06]} 22. Ra5 {[%clk 0:01:39]}  g5 {[%clk 0:00:59]} 23. b3 {[%clk 0:01:33]}  Rac8 {[%clk 0:00:23]} 24. bxc4 {[%clk 0:01:18]}  Bxc4 {[%clk 0:00:24]} 25. Bxc4 {[%clk 0:01:18]}  Rxc4 {[%clk 0:00:22]} 26. Rxa6 {[%clk 0:01:19]}  Rxc3 {[%clk 0:00:22]} 27. Ra7 {[%clk 0:01:15]}  Qg6 {[%clk 0:00:11]} 28. Rd7 {[%clk 0:01:15]}  Rxe3 {[%clk 0:00:08]} 29. Bf2 {[%clk 0:00:37]}  Rd3 {[%clk 0:00:07]} 30. Qb2 {[%clk 0:00:35]}  e3 {[%clk 0:00:08]} 31. Be1 {[%clk 0:00:34]}  f4 {[%clk 0:00:07]} 32. Raa7 {[%clk 0:00:34]}  f3 {[%clk 0:00:07]} 33. gxf3 {[%clk 0:00:32]}  Rxf3 {[%clk 0:00:04]} 34. Qb7 {[%clk 0:00:20]}  Rf1+ {[%clk 0:00:02]} 35. Kxf1 {[%clk 0:00:19]}  Qf5+ {[%clk 0:00:03]} 36. Ke2 {[%clk 0:00:18]}  Nf4+ {[%clk 0:00:02]} 37. Kf3 {[%clk 0:00:18]}  Qh3+ {[%clk 0:00:01]} 38. Ke4 {[%clk 0:00:18]}  Qg2# {[%clk 0:00:01]} 0-1


[Site "https://www.chess.com"]

[Event "Titled Tuesday Blitz May 4 2021"]
[White "Korkmaz, Necmettin"]
[Black "Vasquez Schroeder, Rodrigo"]
[WhiteFideId "6303285"]
[BlackFideId "3400042"]
[WhiteElo "2094"]
[BlackElo "2572"]
[Result "0-1"]
[Round "01"]
[TimeControl "180+1"]
[Date "2021.05.04"]
[WhiteClock "0:01:34"]
[BlackClock "0:01:47"]

1. e4 {[%clk 0:03:00]}  c5 {[%clk 0:02:59]} 2. Nf3 {[%clk 0:02:57]}  d6 {[%clk 0:02:59]} 3. d4 {[%clk 0:02:57]}  cxd4 {[%clk 0:02:59]} 4. Nxd4 {[%clk 0:02:58]}  Nf6 {[%clk 0:02:59]} 5. Nc3 {[%clk 0:02:58]}  a6 {[%clk 0:02:59]} 6. Bg5 {[%clk 0:02:57]}  e6 {[%clk 0:02:59]} 7. f4 {[%clk 0:02:54]}  Nbd7 {[%clk 0:03:00]} 8. Qf3 {[%clk 0:02:54]}  Qc7 {[%clk 0:02:59]} 9. O-O-O {[%clk 0:02:54]}  b5 {[%clk 0:02:59]} 10. e5 {[%clk 0:02:51]}  Bb7 {[%clk 0:02:58]} 11. Qh3 {[%clk 0:02:30]}  dxe5 {[%clk 0:02:57]} 12. Nxe6 {[%clk 0:02:29]}  fxe6 {[%clk 0:02:58]} 13. Qxe6+ {[%clk 0:02:29]}  Be7 {[%clk 0:02:58]} 14. Bxb5 {[%clk 0:02:29]}  axb5 {[%clk 0:02:57]} 15. Nxb5 {[%clk 0:02:29]}  Qb6 {[%clk 0:02:58]} 16. Nd6+ {[%clk 0:02:29]}  Kd8 {[%clk 0:02:58]} 17. fxe5 {[%clk 0:02:26]}  Bd5 {[%clk 0:02:57]} 18. Rxd5 {[%clk 0:02:24]}  Nxd5 {[%clk 0:02:56]} 19. Qxd5 {[%clk 0:02:18]}  Bxg5+ {[%clk 0:02:55]} 20. Kb1 {[%clk 0:02:18]}  Rb8 {[%clk 0:02:47]} 21. b3 {[%clk 0:02:14]}  Kc7 {[%clk 0:02:42]} 22. Nf7 {[%clk 0:02:12]}  Be7 {[%clk 0:02:31]} 23. Nxh8 {[%clk 0:02:10]}  Rxh8 {[%clk 0:02:28]} 24. Rd1 {[%clk 0:02:10]}  Nc5 {[%clk 0:02:20]} 25. Qf7 {[%clk 0:02:08]}  Qe6 {[%clk 0:02:18]} 26. Qxg7 {[%clk 0:02:04]}  Rg8 {[%clk 0:02:17]} 27. Qxh7 {[%clk 0:02:01]}  Rxg2 {[%clk 0:02:15]} 28. b4 {[%clk 0:01:49]}  Na4 {[%clk 0:02:05]} 29. Qd3 {[%clk 0:01:48]}  Qc6 {[%clk 0:01:59]} 30. c4 {[%clk 0:01:42]}  Nb2 {[%clk 0:01:50]} 31. Qh7 {[%clk 0:01:34]}  Nxd1 {[%clk 0:01:47]} 32. Qxe7+ {[%clk 0:01:34]}  Qd7 {[%clk 0:01:47]} 33. Qc5+ {[%clk 0:01:34]}  Kb7 {[%clk 0:01:46]} 34. Qd5+ {[%clk 0:01:33]}  Qxd5 {[%clk 0:01:46]} 35. cxd5 {[%clk 0:01:34]}  Nc3+ {[%clk 0:01:47]} 36. Kc1 {[%clk 0:01:34]}  Nxd5 {[%clk 0:01:47]} 0-1


[Site "https://www.chess.com"]

[Event "Titled Tuesday Blitz May 4 2021"]
[White "Krasilnikov, Evgeni"]
[Black "Izoria, Zviad"]
[WhiteFideId "4139739"]
[BlackFideId "13601733"]
[WhiteElo "2357"]
[BlackElo "2626"]
[Result "1-0"]
[Round "01"]
[TimeControl "180+1"]
[Date "2021.05.04"]
[WhiteClock "0:00:03"]
[BlackClock "0:00:19"]

1. e4 {[%clk 0:03:00]}  c6 {[%clk 0:02:56]} 2. d4 {[%clk 0:02:59]}  d5 {[%clk 0:02:56]} 3. e5 {[%clk 0:02:59]}  Bf5 {[%clk 0:02:57]} 4. h4 {[%clk 0:02:59]}  Qb6 {[%clk 0:02:49]} 5. g4 {[%clk 0:02:58]}  Bd7 {[%clk 0:02:47]} 6. h5 {[%clk 0:02:57]}  c5 {[%clk 0:02:45]} 7. c3 {[%clk 0:02:56]}  cxd4 {[%clk 0:02:42]} 8. cxd4 {[%clk 0:02:55]}  Nc6 {[%clk 0:02:42]} 9. Nc3 {[%clk 0:02:30]}  Qxd4 {[%clk 0:02:35]} 10. Qxd4 {[%clk 0:02:17]}  Nxd4 {[%clk 0:02:36]} 11. Nxd5 {[%clk 0:02:17]}  O-O-O {[%clk 0:02:19]} 12. Ne3 {[%clk 0:02:16]}  Bc6 {[%clk 0:02:17]} 13. Rh2 {[%clk 0:02:13]}  e6 {[%clk 0:02:15]} 14. Bd2 {[%clk 0:02:13]}  f6 {[%clk 0:02:02]} 15. f4 {[%clk 0:02:06]}  fxe5 {[%clk 0:01:58]} 16. fxe5 {[%clk 0:02:05]}  Nh6 {[%clk 0:01:57]} 17. O-O-O {[%clk 0:02:03]}  Nf7 {[%clk 0:01:51]} 18. Bc3 {[%clk 0:01:53]}  Bc5 {[%clk 0:01:45]} 19. Re1 {[%clk 0:01:44]}  Nxe5 {[%clk 0:01:38]} 20. Rf2 {[%clk 0:01:27]}  Ndf3 {[%clk 0:01:23]} 21. Nxf3 {[%clk 0:01:20]}  Nxf3 {[%clk 0:01:24]} 22. Rxf3 {[%clk 0:01:10]}  Bxf3 {[%clk 0:01:23]} 23. Bxg7 {[%clk 0:01:08]}  Rhg8 {[%clk 0:01:21]} 24. Bh6 {[%clk 0:00:57]}  Bxe3+ {[%clk 0:01:15]} 25. Bxe3 {[%clk 0:00:55]}  Rxg4 {[%clk 0:01:12]} 26. Bh3 {[%clk 0:00:44]}  Rc4+ {[%clk 0:01:11]} 27. Kb1 {[%clk 0:00:43]}  Be4+ {[%clk 0:01:02]} 28. Ka1 {[%clk 0:00:43]}  Bf5 {[%clk 0:01:03]} 29. Bf1 {[%clk 0:00:38]}  Rc2 {[%clk 0:00:56]} 30. a3 {[%clk 0:00:30]}  a6 {[%clk 0:00:54]} 31. h6 {[%clk 0:00:29]}  Rd5 {[%clk 0:00:49]} 32. Bg5 {[%clk 0:00:19]}  Kd7 {[%clk 0:00:42]} 33. Ka2 {[%clk 0:00:16]}  b5 {[%clk 0:00:31]} 34. Bf4 {[%clk 0:00:16]}  Kc6 {[%clk 0:00:23]} 35. Bg5 {[%clk 0:00:15]}  a5 {[%clk 0:00:23]} 36. Bf4 {[%clk 0:00:14]}  a4 {[%clk 0:00:23]} 37. Bg5 {[%clk 0:00:14]}  Kd7 {[%clk 0:00:22]} 38. Bf4 {[%clk 0:00:13]}  Bd3 {[%clk 0:00:22]} 39. Bh3 {[%clk 0:00:10]}  Bf5 {[%clk 0:00:21]} 40. Bf1 {[%clk 0:00:10]}  Rf2 {[%clk 0:00:20]} 41. Be3 {[%clk 0:00:09]}  Rh2 {[%clk 0:00:20]} 42. Bf4 {[%clk 0:00:09]}  Rh3 {[%clk 0:00:19]} 43. Bxh3 {[%clk 0:00:08]}  Bxh3 {[%clk 0:00:20]} 44. Rg1 {[%clk 0:00:08]}  Bf5 {[%clk 0:00:19]} 45. Rg7+ {[%clk 0:00:08]}  Kc6 {[%clk 0:00:20]} 46. Rc7+ {[%clk 0:00:08]}  Kb6 {[%clk 0:00:20]} 47. Re7 {[%clk 0:00:07]}  Rd3 {[%clk 0:00:20]} 48. Be5 {[%clk 0:00:07]}  Rh3 {[%clk 0:00:19]} 49. Bd4+ {[%clk 0:00:06]}  Kc6 {[%clk 0:00:20]} 50. Be5 {[%clk 0:00:06]}  Kd5 {[%clk 0:00:19]} 51. Bf4 {[%clk 0:00:07]}  Bd3 {[%clk 0:00:19]} 52. Bc7 {[%clk 0:00:05]}  Bc4+ {[%clk 0:00:19]} 53. Kb1 {[%clk 0:00:05]}  Bd3+ {[%clk 0:00:19]} 54. Kc1 {[%clk 0:00:05]}  Rxh6 {[%clk 0:00:20]} 55. Kd2 {[%clk 0:00:04]}  Bc4 {[%clk 0:00:20]} 56. Kc3 {[%clk 0:00:04]}  Rh3+ {[%clk 0:00:20]} 57. Kc2 {[%clk 0:00:04]}  h5 {[%clk 0:00:20]} 58. Kd2 {[%clk 0:00:04]}  h4 {[%clk 0:00:20]} 59. Rh7 {[%clk 0:00:04]}  Rh2+ {[%clk 0:00:19]} 60. Bxh2 {[%clk 0:00:03]}  e5 {[%clk 0:00:19]} 61. Rxh4 {[%clk 0:00:03]} 1-0


[Site "https://www.chess.com"]

[Event "Titled Tuesday Blitz May 4 2021"]
[White "Kretov, Evgenij"]
[Black "Chyzy, Jakub"]
[WhiteFideId "4167821"]
[BlackFideId "21806209"]
[WhiteElo "2381"]
[BlackElo "2013"]
[Result "1-0"]
[Round "01"]
[TimeControl "180+1"]
[Date "2021.05.04"]
[WhiteClock "0:01:24"]
[BlackClock "0:00:05"]

1. d4 {[%clk 0:03:00]}  Nf6 {[%clk 0:02:55]} 2. c4 {[%clk 0:02:59]}  d6 {[%clk 0:02:53]} 3. Nf3 {[%clk 0:02:58]}  Nbd7 {[%clk 0:02:52]} 4. Nc3 {[%clk 0:02:58]}  e5 {[%clk 0:02:51]} 5. e4 {[%clk 0:02:59]}  g6 {[%clk 0:02:50]} 6. Be2 {[%clk 0:02:59]}  Bg7 {[%clk 0:02:49]} 7. O-O {[%clk 0:03:00]}  O-O {[%clk 0:02:49]} 8. Re1 {[%clk 0:03:00]}  c6 {[%clk 0:02:47]} 9. Bf1 {[%clk 0:03:01]}  a6 {[%clk 0:02:43]} 10. h3 {[%clk 0:03:00]}  b5 {[%clk 0:02:36]} 11. d5 {[%clk 0:03:00]}  bxc4 {[%clk 0:01:55]} 12. dxc6 {[%clk 0:02:58]}  Nb6 {[%clk 0:01:48]} 13. Nd5 {[%clk 0:02:55]}  Nfxd5 {[%clk 0:01:31]} 14. exd5 {[%clk 0:02:54]}  f5 {[%clk 0:01:30]} 15. Bg5 {[%clk 0:02:38]}  Qc7 {[%clk 0:01:25]} 16. Rc1 {[%clk 0:02:36]}  e4 {[%clk 0:01:23]} 17. Nd4 {[%clk 0:02:35]}  h6 {[%clk 0:01:11]} 18. Bf4 {[%clk 0:02:10]}  g5 {[%clk 0:01:08]} 19. Bh2 {[%clk 0:02:10]}  Rb8 {[%clk 0:00:43]} 20. g4 {[%clk 0:01:52]}  Kh8 {[%clk 0:00:28]} 21. Nxf5 {[%clk 0:01:48]}  Bxf5 {[%clk 0:00:28]} 22. gxf5 {[%clk 0:01:48]}  Rxf5 {[%clk 0:00:29]} 23. Bxc4 {[%clk 0:01:44]}  Nxc4 {[%clk 0:00:26]} 24. Rxc4 {[%clk 0:01:44]}  Rxb2 {[%clk 0:00:25]} 25. Re2 {[%clk 0:01:34]}  Rxe2 {[%clk 0:00:15]} 26. Qxe2 {[%clk 0:01:34]}  Rxd5 {[%clk 0:00:15]} 27. Qxe4 {[%clk 0:01:34]}  Rd1+ {[%clk 0:00:15]} 28. Kg2 {[%clk 0:01:34]}  Be5 {[%clk 0:00:10]} 29. Bxe5+ {[%clk 0:01:28]}  dxe5 {[%clk 0:00:11]} 30. Rb4 {[%clk 0:01:27]}  Rd6 {[%clk 0:00:08]} 31. Qxe5+ {[%clk 0:01:26]}  Kg8 {[%clk 0:00:06]} 32. Qe8+ {[%clk 0:01:26]}  Kg7 {[%clk 0:00:04]} 33. Rb7 {[%clk 0:01:24]}  Rxc6 {[%clk 0:00:04]} 34. Rxc7+ {[%clk 0:01:24]}  Rxc7 {[%clk 0:00:05]} 35. Qe5+ {[%clk 0:01:24]} 1-0


[Site "https://www.chess.com"]

[Event "Titled Tuesday Blitz May 4 2021"]
[White "Krysa, Leandro"]
[Black "Martinez Lopez, David"]
[WhiteFideId "116807"]
[BlackFideId "22235779"]
[WhiteElo "2490"]
[BlackElo "2343"]
[Result "1-0"]
[Round "01"]
[TimeControl "180+1"]
[Date "2021.05.04"]
[WhiteClock "0:01:01"]
[BlackClock "0:00:07"]

1. e4 {[%clk 0:03:00]}  e6 {[%clk 0:02:58]} 2. d4 {[%clk 0:03:00]}  d5 {[%clk 0:02:58]} 3. Nc3 {[%clk 0:03:00]}  Nf6 {[%clk 0:02:58]} 4. e5 {[%clk 0:03:00]}  Nfd7 {[%clk 0:02:58]} 5. f4 {[%clk 0:03:00]}  c5 {[%clk 0:02:58]} 6. Nf3 {[%clk 0:03:01]}  Nc6 {[%clk 0:02:59]} 7. Be3 {[%clk 0:03:02]}  Be7 {[%clk 0:02:58]} 8. Qd2 {[%clk 0:02:59]}  b6 {[%clk 0:02:58]} 9. Be2 {[%clk 0:02:55]}  O-O {[%clk 0:02:58]} 10. O-O {[%clk 0:02:54]}  f5 {[%clk 0:02:58]} 11. exf6 {[%clk 0:02:47]}  Nxf6 {[%clk 0:02:57]} 12. Ne5 {[%clk 0:02:32]}  Bb7 {[%clk 0:02:50]} 13. Kh1 {[%clk 0:02:27]}  Rc8 {[%clk 0:02:33]} 14. Rad1 {[%clk 0:02:21]}  a6 {[%clk 0:02:26]} 15. Nxc6 {[%clk 0:02:15]}  Rxc6 {[%clk 0:02:25]} 16. Bd3 {[%clk 0:02:09]}  c4 {[%clk 0:02:17]} 17. Be2 {[%clk 0:02:06]}  b5 {[%clk 0:02:18]} 18. a3 {[%clk 0:02:06]}  Rc7 {[%clk 0:02:06]} 19. Rde1 {[%clk 0:02:01]}  Bc6 {[%clk 0:02:04]} 20. Bf2 {[%clk 0:01:58]}  a5 {[%clk 0:01:59]} 21. Bf3 {[%clk 0:01:51]}  b4 {[%clk 0:01:56]} 22. axb4 {[%clk 0:01:51]}  axb4 {[%clk 0:01:55]} 23. Nd1 {[%clk 0:01:51]}  Ne4 {[%clk 0:01:52]} 24. Bxe4 {[%clk 0:01:50]}  dxe4 {[%clk 0:01:53]} 25. c3 {[%clk 0:01:46]}  Bd6 {[%clk 0:01:42]} 26. Bg3 {[%clk 0:01:43]}  b3 {[%clk 0:01:34]} 27. Ne3 {[%clk 0:01:42]}  Bd5 {[%clk 0:01:27]} 28. h3 {[%clk 0:01:34]}  Rcf7 {[%clk 0:01:19]} 29. Rf2 {[%clk 0:01:25]}  Qc7 {[%clk 0:00:59]} 30. Ref1 {[%clk 0:01:15]}  g5 {[%clk 0:00:51]} 31. Ng4 {[%clk 0:01:11]}  Kg7 {[%clk 0:00:23]} 32. Ne5 {[%clk 0:01:07]}  Bxe5 {[%clk 0:00:22]} 33. fxe5 {[%clk 0:01:08]}  h6 {[%clk 0:00:18]} 34. Rf6 {[%clk 0:01:08]}  Qe7 {[%clk 0:00:15]} 35. h4 {[%clk 0:01:07]}  Kh7 {[%clk 0:00:12]} 36. hxg5 {[%clk 0:01:04]}  hxg5 {[%clk 0:00:12]} 37. Qxg5 {[%clk 0:01:04]}  Rxf6 {[%clk 0:00:12]} 38. exf6 {[%clk 0:01:02]}  Qf7 {[%clk 0:00:12]} 39. Rf4 {[%clk 0:01:02]}  Rh8 {[%clk 0:00:07]} 40. Rh4+ {[%clk 0:01:01]} 1-0


[Site "https://www.chess.com"]

[Event "Titled Tuesday Blitz May 4 2021"]
[White "Kwon, Sehyun"]
[Black "Gershon, Alik"]
[WhiteFideId "13203088"]
[BlackFideId "2802430"]
[WhiteElo "1778"]
[BlackElo "2282"]
[Result "1-0"]
[Round "01"]
[TimeControl "180+1"]
[Date "2021.05.04"]
[WhiteClock "0:00:09"]
[BlackClock "0:00:41"]

1. e4 {[%clk 0:03:00]}  c6 {[%clk 0:02:59]} 2. c4 {[%clk 0:03:00]}  d5 {[%clk 0:03:00]} 3. cxd5 {[%clk 0:03:01]}  cxd5 {[%clk 0:03:00]} 4. exd5 {[%clk 0:03:01]}  Nf6 {[%clk 0:03:00]} 5. Qa4+ {[%clk 0:03:02]}  Nbd7 {[%clk 0:02:58]} 6. Nc3 {[%clk 0:03:02]}  g6 {[%clk 0:02:58]} 7. Nf3 {[%clk 0:03:03]}  Bg7 {[%clk 0:02:58]} 8. Bc4 {[%clk 0:03:04]}  O-O {[%clk 0:02:58]} 9. d3 {[%clk 0:03:04]}  Nb6 {[%clk 0:02:57]} 10. Qb3 {[%clk 0:03:04]}  a5 {[%clk 0:02:44]} 11. a4 {[%clk 0:02:59]}  Qd6 {[%clk 0:02:44]} 12. Be3 {[%clk 0:02:47]}  Nbd7 {[%clk 0:02:41]} 13. O-O {[%clk 0:02:37]}  Nc5 {[%clk 0:02:38]} 14. Qa3 {[%clk 0:02:35]}  b6 {[%clk 0:02:37]} 15. Nb5 {[%clk 0:02:30]}  Qd8 {[%clk 0:02:28]} 16. Bxc5 {[%clk 0:02:25]}  bxc5 {[%clk 0:02:27]} 17. Qxc5 {[%clk 0:02:26]}  Ba6 {[%clk 0:02:25]} 18. Rfe1 {[%clk 0:02:22]}  Ng4 {[%clk 0:02:15]} 19. Rab1 {[%clk 0:02:13]}  Bxb5 {[%clk 0:01:59]} 20. Bxb5 {[%clk 0:02:07]}  Rc8 {[%clk 0:01:59]} 21. Bc6 {[%clk 0:01:54]}  Qd6 {[%clk 0:01:56]} 22. Qxa5 {[%clk 0:01:48]}  Ne5 {[%clk 0:01:55]} 23. Nxe5 {[%clk 0:01:43]}  Bxe5 {[%clk 0:01:54]} 24. g3 {[%clk 0:01:43]}  h5 {[%clk 0:01:53]} 25. Qd2 {[%clk 0:01:33]}  h4 {[%clk 0:01:52]} 26. d4 {[%clk 0:01:30]}  Bf6 {[%clk 0:01:48]} 27. b4 {[%clk 0:01:27]}  hxg3 {[%clk 0:01:45]} 28. hxg3 {[%clk 0:01:24]}  e6 {[%clk 0:01:45]} 29. b5 {[%clk 0:01:08]}  exd5 {[%clk 0:01:44]} 30. a5 {[%clk 0:01:00]}  Bd8 {[%clk 0:01:39]} 31. Ra1 {[%clk 0:00:49]}  Rc7 {[%clk 0:01:32]} 32. a6 {[%clk 0:00:29]}  Ra7 {[%clk 0:01:27]} 33. Qa2 {[%clk 0:00:30]}  Bb6 {[%clk 0:01:23]} 34. Qxd5 {[%clk 0:00:30]}  Qxd5 {[%clk 0:01:21]} 35. Bxd5 {[%clk 0:00:31]}  Bxd4 {[%clk 0:01:21]} 36. Rad1 {[%clk 0:00:31]}  Bb6 {[%clk 0:01:19]} 37. Bf3 {[%clk 0:00:25]}  Kg7 {[%clk 0:01:19]} 38. Rd6 {[%clk 0:00:25]}  Rb8 {[%clk 0:01:19]} 39. Be2 {[%clk 0:00:15]}  Re7 {[%clk 0:01:15]} 40. Kf1 {[%clk 0:00:12]}  Ba7 {[%clk 0:01:12]} 41. Red1 {[%clk 0:00:10]}  Rbe8 {[%clk 0:01:05]} 42. Bf3 {[%clk 0:00:11]}  Rb8 {[%clk 0:01:04]} 43. Rd7 {[%clk 0:00:11]}  Rxd7 {[%clk 0:01:01]} 44. Rxd7 {[%clk 0:00:12]}  Bc5 {[%clk 0:01:00]} 45. Bc6 {[%clk 0:00:07]}  Kf6 {[%clk 0:00:46]} 46. a7 {[%clk 0:00:07]}  Bxa7 {[%clk 0:00:46]} 47. Rxa7 {[%clk 0:00:08]}  Ke6 {[%clk 0:00:47]} 48. Rb7 {[%clk 0:00:07]}  Rc8 {[%clk 0:00:46]} 49. Bf3 {[%clk 0:00:07]}  Rc5 {[%clk 0:00:45]} 50. b6 {[%clk 0:00:06]}  Rb5 {[%clk 0:00:45]} 51. Rb8 {[%clk 0:00:06]}  Kd6 {[%clk 0:00:45]} 52. b7 {[%clk 0:00:07]}  Kc7 {[%clk 0:00:44]} 53. Rc8+ {[%clk 0:00:07]}  Kd7 {[%clk 0:00:44]} 54. b8=Q {[%clk 0:00:07]}  Rxb8 {[%clk 0:00:45]} 55. Rxb8 {[%clk 0:00:07]}  Kd6 {[%clk 0:00:45]} 56. Rb5 {[%clk 0:00:08]}  f5 {[%clk 0:00:44]} 57. Ke2 {[%clk 0:00:08]}  Ke6 {[%clk 0:00:43]} 58. Ke3 {[%clk 0:00:09]}  Kf6 {[%clk 0:00:43]} 59. g4 {[%clk 0:00:08]}  fxg4 {[%clk 0:00:41]} 60. Bxg4 {[%clk 0:00:09]}  g5 {[%clk 0:00:41]} 61. Ke4 {[%clk 0:00:09]}  Kg6 {[%clk 0:00:41]} 62. Rb6+ {[%clk 0:00:09]} 1-0


[Site "https://www.chess.com"]

[Event "Titled Tuesday Blitz May 4 2021"]
[White "Langner, Ladislav"]
[Black "Matinian, Nikita"]
[WhiteFideId "300403"]
[BlackFideId "24129100"]
[WhiteElo "2346"]
[BlackElo "2410"]
[Result "0-1"]
[Round "01"]
[TimeControl "180+1"]
[Date "2021.05.04"]
[WhiteClock "0:00:03"]
[BlackClock "0:00:05"]

1. e4 {[%clk 0:03:00]}  c5 {[%clk 0:02:59]} 2. d4 {[%clk 0:03:00]}  cxd4 {[%clk 0:02:59]} 3. c3 {[%clk 0:03:00]}  dxc3 {[%clk 0:02:58]} 4. Nxc3 {[%clk 0:03:00]}  Nc6 {[%clk 0:02:56]} 5. Nf3 {[%clk 0:03:00]}  e6 {[%clk 0:02:56]} 6. Bf4 {[%clk 0:02:58]}  a6 {[%clk 0:02:55]} 7. Be2 {[%clk 0:02:48]}  Nge7 {[%clk 0:02:53]} 8. Bd6 {[%clk 0:02:47]}  b5 {[%clk 0:02:45]} 9. Qd2 {[%clk 0:02:41]}  Ng6 {[%clk 0:02:42]} 10. Bxf8 {[%clk 0:02:40]}  Rxf8 {[%clk 0:02:39]} 11. h4 {[%clk 0:02:39]}  h6 {[%clk 0:02:36]} 12. h5 {[%clk 0:02:38]}  Nge5 {[%clk 0:02:34]} 13. Nxe5 {[%clk 0:02:38]}  Nxe5 {[%clk 0:02:35]} 14. f4 {[%clk 0:02:38]}  Nc4 {[%clk 0:01:56]} 15. Bxc4 {[%clk 0:02:37]}  bxc4 {[%clk 0:01:57]} 16. Qd4 {[%clk 0:02:37]}  Qc7 {[%clk 0:01:50]} 17. g3 {[%clk 0:02:03]}  f6 {[%clk 0:01:46]} 18. O-O-O {[%clk 0:01:58]}  Rb8 {[%clk 0:01:43]} 19. Rhe1 {[%clk 0:01:55]}  Qb6 {[%clk 0:01:31]} 20. Qd2 {[%clk 0:01:54]}  Qc6 {[%clk 0:01:11]} 21. Qe2 {[%clk 0:01:23]}  a5 {[%clk 0:01:00]} 22. Rd4 {[%clk 0:01:16]}  Ba6 {[%clk 0:01:00]} 23. Red1 {[%clk 0:01:16]}  Rf7 {[%clk 0:00:56]} 24. Rd6 {[%clk 0:01:12]}  Qb7 {[%clk 0:00:54]} 25. f5 {[%clk 0:01:08]}  Re7 {[%clk 0:00:50]} 26. fxe6 {[%clk 0:01:05]}  dxe6 {[%clk 0:00:49]} 27. Na4 {[%clk 0:00:54]}  Bb5 {[%clk 0:00:39]} 28. Rb6 {[%clk 0:00:40]}  Qc8 {[%clk 0:00:31]} 29. Rxb8 {[%clk 0:00:30]}  Qxb8 {[%clk 0:00:29]} 30. Nc3 {[%clk 0:00:31]}  Bd7 {[%clk 0:00:23]} 31. Qg4 {[%clk 0:00:30]}  Qe5 {[%clk 0:00:20]} 32. Rd2 {[%clk 0:00:24]}  Kf8 {[%clk 0:00:19]} 33. Qg6 {[%clk 0:00:23]}  Be8 {[%clk 0:00:17]} 34. Qh7 {[%clk 0:00:20]}  Qxh5 {[%clk 0:00:17]} 35. Qh8+ {[%clk 0:00:20]}  Kf7 {[%clk 0:00:18]} 36. Ne2 {[%clk 0:00:15]}  Qh1+ {[%clk 0:00:16]} 37. Rd1 {[%clk 0:00:13]}  Qxe4 {[%clk 0:00:17]} 38. Nf4 {[%clk 0:00:12]}  Qe3+ {[%clk 0:00:14]} 39. Kb1 {[%clk 0:00:10]}  c3 {[%clk 0:00:14]} 40. Qh7 {[%clk 0:00:03]}  Rb7 {[%clk 0:00:05]} 0-1


[Site "https://www.chess.com"]